lending/lending_fUSD_20241120
["ID","MTS","AMOUNT","RATE_DAILY","PERIOD"]
[342716115,1732073432092,-44202.69275694,0.0001,2]
[342716132,1732073432589,-12116.79619576,0.0001,2]
[342716134,1732073432601,-1973.47855154,0.0001,2]
[342716136,1732073432612,-1081.67849063,0.0001,2]
[342716138,1732073432623,-499.56499649,0.0001,2]
[342716141,1732073432639,-3987.45282922,0.0001,2]
[342716143,1732073432650,-1100.0,0.0001,2]
[342716145,1732073432661,-505.95,0.0001,2]
[342716147,1732073432672,-615.1,0.0001,2]
[342716150,1732073432691,-1157.66053093,0.0001,2]
[342716153,1732073432703,-1859.87048133,0.0001,2]
[342716155,1732073432714,-14927.36994088,0.0001,2]
[342716157,1732073432726,-3211.6503843,0.0001,2]
[342716159,1732073432737,-63835.11487926,0.0001,2]
[342716204,1732073438212,-31923984.5294937,0.0001,2]
[342716205,1732073438223,-724392.44595177,0.0001,2]
[342716206,1732073438234,-341.44346007,0.0001,2]
[342716207,1732073438252,-79271.36429687,0.0001,2]
[342716208,1732073438398,-2118.77764759,0.0001,2]
[342716209,1732073438549,-2296.61744625,0.0001,2]
[342716217,1732073440092,-341.16884404,0.0001,2]
[342716221,1732073440289,-28019.2140588,0.0001,2]
[342716222,1732073440301,-31221.04345267,0.0001,2]
[342716223,1732073440312,-772.03961555,0.0001,2]
[342716224,1732073440491,-26000.11933208,0.0001,2]
[342716229,1732073443074,-682.36978236,0.0001,2]
[342716230,1732073443085,-377.338759,0.0001,2]
[342716231,1732073443097,-448.21170949,0.0001,2]
[342716232,1732073443193,-9018.59284828,0.0001,2]
[342716233,1732073443205,-1829.96652278,0.0001,2]
[342716234,1732073443310,-1406.88395554,0.0001,2]
[342716235,1732073443321,-7400.0,0.0001,2]
[342716236,1732073443528,-8.24545855,0.0001,2]
[342716247,1732073446304,-3400.49119398,0.0001,2]
[342716248,1732073446315,-1360.27472021,0.0001,2]
[342716249,1732073446327,-3889.30183016,0.0001,2]
[342716250,1732073446338,-4403.04167378,0.0001,2]
[342716251,1732073446349,-2394.89673906,0.0001,2]
[342716252,1732073446360,-997.2466864,0.0001,2]
[342716253,1732073446371,-380.17238216,0.0001,2]
[342716254,1732073446382,-2327.60515132,0.0001,2]
[342716255,1732073446393,-442.70369659,0.0001,2]
[342716256,1732073446403,-27362.49586972,0.0001,2]
[342716257,1732073446414,-5258.1992377,0.0001,2]
[342716258,1732073446425,-62494.66044775,0.0001,2]
[342716259,1732073446437,-14983.6989897,0.0001,2]
[342716260,1732073446447,-11286.168,0.0001,2]
[342716261,1732073446461,-1349.94555653,0.0001,2]
[342716262,1732073446472,-8370.8,0.0001,2]
[342716263,1732073446483,-566.695,0.0001,2]
[342716264,1732073446591,-9895.57724858,0.0001,2]
[342716265,1732073446602,-11415.66389546,0.0001,2]
[342716266,1732073446613,-6132.62161919,0.0001,2]
[342716267,1732073446624,-2634.14920453,0.0001,2]
[342716268,1732073446635,-32125.5154073,0.0001,2]
[342716269,1732073446646,-2265.38556,0.0001,2]
[342716271,1732073869170,214.37431995,0.00027,120]
[342716272,1732073913014,500.0,0.00025,30]
[342716273,1732073944481,-300.0,9.899e-05,2]
[342716274,1732073944504,-150.0,9.899e-05,2]
[342716275,1732073944527,-500.0,9.9e-05,2]
[342716276,1732073944550,-72342.6069,9.9e-05,2]
[342716277,1732073944577,-911.756,9.9e-05,2]
[342716278,1732073944601,-416.0,9.973e-05,2]
[342716279,1732073944624,-500.0,9.999e-05,2]
[342716280,1732073944655,-924879.6371,0.0001,2]
[342716281,1732073995088,-778.06471395,9.95e-05,2]
[342716282,1732073995118,-749221.93528605,0.0001,2]
[342716284,1732074425151,-151.30727379,9e-05,2]
[342716285,1732074425174,-560.5568961,9.95e-05,2]
[342716286,1732074453105,-150.0,9.891e-05,2]
[342716287,1732074453130,-436.62025579,9.95e-05,2]
[342716304,1732074632707,-312.5294,9.9e-05,2]
[342716305,1732074632716,-300.0,9.949e-05,2]
[342716306,1732074632725,-50423.22298002,9.95e-05,2]
[342716307,1732074632734,-150.0,9.999e-05,2]
[342716308,1732074632743,-2692.71839531,9.999e-05,2]
[342716309,1732074632752,-414893.50168316,0.0001,2]
[342716310,1732074632764,-994.51750016,0.0001,2]
[342716311,1732074632776,-4140.58380042,0.0001,2]
[342716312,1732074632787,-470.79692717,0.0001,2]
[342716313,1732074632798,-1128.0,0.0001,2]
[342716314,1732074632809,-497.35,0.0001,2]
[342716315,1732074632820,-458.128,0.0001,2]
[342716316,1732074632831,-4259.61070056,0.0001,2]
[342716317,1732074632970,-532.43582933,0.0001,2]
[342716320,1732074632982,-482.99531256,0.0001,2]
[342716358,1732074638268,-181.58167052,0.0001,2]
[342716360,1732074638280,-838.0,0.0001,2]
[342716366,1732074638501,-31923984.5294937,0.0001,2]
[342716367,1732074638514,-914758.17271325,0.0001,2]
[342716368,1732074638525,-1200.0,0.0001,2]
[342716369,1732074638536,-1245.37967442,0.0001,2]
[342716370,1732074638547,-794.03969429,0.0001,2]
[342716371,1732074638558,-18682.19565467,0.0001,2]
[342716372,1732074638569,-535.38433648,0.0001,2]
[342716373,1732074638580,-4685.23140956,0.0001,2]
[342716374,1732074638591,-2442.60539867,0.0001,2]
[342716375,1732074638603,-2761.27713269,0.0001,2]
[342716376,1732074638614,-7820.71097181,0.0001,2]
[342716377,1732074638625,-1798.52974739,0.0001,2]
[342716378,1732074638794,-612.87082591,0.0001,2]
[342716379,1732074638807,-899095.09285721,0.0001,2]
[342716380,1732074638818,-7654.46792279,0.0001,2]
[342716392,1732074640235,-465.12583546,0.0001,2]
[342716402,1732074640566,-322051.53073963,0.0001,2]
[342716403,1732074640585,-26247.13155137,0.0001,2]
[342716404,1732074640607,-675.25031017,0.0001,2]
[342716405,1732074640622,-534.1,0.0001,2]
[342716406,1732074643354,-788.99095259,0.0001,2]
[342716407,1732074643369,-199215.45000001,0.0001,2]
[342716410,1732074643385,-5177.44204653,0.0001,2]
[342716413,1732074643400,-2873.51361833,0.0001,2]
[342716422,1732074643583,-3233.08538792,0.0001,2]
[342716497,1732074646195,-428.13912522,0.0001,2]
[342716499,1732074646206,-3635.22523007,0.0001,2]
[342716509,1732074646451,-848.37728554,0.0001,2]
[342716510,1732074646462,-637.94927406,0.0001,2]
[342716511,1732074646473,-5304.8574,0.0001,2]
[342716512,1732074646484,-21677.10274793,0.0001,2]
[342716513,1732074646495,-2192.1224385,0.0001,2]
[342716514,1732074646506,-2905.5331124,0.0001,2]
[342716515,1732074646518,-3329.47780248,0.0001,2]
[342716516,1732074646529,-1395.02660637,0.0001,2]
[342716517,1732074646699,-34978.78788798,0.0001,2]
[342716520,1732074646711,-1133.612002,0.0001,2]
[342716524,1732074646722,-2551.74775636,0.0001,2]
[342716525,1732074646733,-26052.94887479,0.0001,2]
[342716528,1732075234140,13234.52601706,0.00027,120]
[342716529,1732075549178,-150.0,9e-05,2]
[342716530,1732075549199,-234.30220974,9.899e-05,2]
[342716531,1732075558041,156.25357519,0.00027,120]
[342716532,1732075641091,-100.71359026,9.899e-05,2]
[342716533,1732075641113,-150.0,9.899e-05,2]
[342716534,1732075641136,-38.14294313,9.9e-05,2]
[342716535,1732075647096,-1448.76845687,9.9e-05,2]
[342716536,1732075647116,-616.91883437,9.9e-05,2]
[342716544,1732075832201,-1616.18669621,9.801e-05,2]
[342716545,1732075832260,-7544.81330379,9.801e-05,2]
[342716546,1732075832270,-300.0,9.898e-05,2]
[342716547,1732075832284,-2500.0,9.899e-05,2]
[342716548,1732075832296,-150.0,9.899e-05,2]
[342716549,1732075832306,-12.97726563,9.9e-05,2]
[342716550,1732075832315,-330.1098,9.9e-05,2]
[342716551,1732075832325,-78027.62508398,9.9e-05,2]
[342716552,1732075832382,-87359.44321602,9.9e-05,2]
[342716553,1732075832391,-8927.064,9.9e-05,2]
[342716554,1732075832401,-1046.0,9.973e-05,2]
[342716555,1732075832409,-795.0,9.973e-05,2]
[342716556,1732075832420,-171.71245009,9.973e-05,2]
[342716557,1732075832429,-500.11250213,9.973e-05,2]
[342716558,1732075832438,-342.80152517,9.973e-05,2]
[342716559,1732075832447,-500.0,9.973e-05,2]
[342716560,1732075832458,-201456.30949472,9.999e-05,2]
[342716561,1732075832475,-500.0,9.999e-05,2]
[342716562,1732075832484,-713342.29297808,0.0001,2]
[342716563,1732075832502,-889.04514341,0.0001,2]
[342716564,1732075832578,-540.0,0.0001,2]
[342716565,1732075832590,-535.47,0.0001,2]
[342716566,1732075832604,-3179.51067861,0.0001,2]
[342716577,1732075838241,-332.38076718,0.0001,2]
[342716578,1732075838253,-112453.09,0.0001,2]
[342716579,1732075838345,-12155.9007856,0.0001,2]
[342716580,1732075838358,-2537.92305797,0.0001,2]
[342716581,1732075838452,-1268.56411617,0.0001,2]
[342716582,1732075838562,-636.63706087,0.0001,2]
[342716583,1732075838667,-983969.10026272,0.0001,2]
[342716669,1732075840448,-6994.72201244,0.0001,2]
[342716679,1732075843402,-290118.9904452,0.0001,2]
[342716689,1732075846283,-29585.726744,0.0001,2]
[342716690,1732075846339,-2758.44,0.0001,2]
[342716691,1732075846350,-1601.13167495,0.0001,2]
[342716692,1732075846361,-913.36650126,0.0001,2]
[342716693,1732075846371,-260.3248362,0.0001,2]
[342716694,1732075846383,-3104.89849298,0.0001,2]
[342716695,1732076362842,-4338.0,9.79e-05,2]
[342716698,1732076525077,-3172.0,9.79e-05,2]
[342716699,1732076589306,-21491.94603407,9.79e-05,2]
[342716700,1732076589329,-150.0,9.799e-05,2]
[342716701,1732076589352,-6404.05396593,9.8e-05,2]
[342716704,1732076830139,-400.0,9.2e-05,3]
[342716705,1732076830160,-208.56737075,9.3e-05,3]
[342716706,1732076834125,-581.60299046,9.3e-05,3]
[342716707,1732076849101,-109.82963879,9.3e-05,3]
[342716708,1732076849123,-1127.12270532,9.4e-05,3]
[342716729,1732077031410,-150.24,9.169e-05,2]
[342716730,1732077031421,-250.0,9.183e-05,2]
[342716731,1732077031431,-300.0,9.367e-05,2]
[342716732,1732077031440,-10572.95598325,9.368e-05,2]
[342716733,1732077031468,-13327.04401675,9.368e-05,2]
[342716734,1732077031476,-172.87729468,9.4e-05,3]
[342716735,1732077031486,-250.0,9.425e-05,2]
[342716736,1732077031495,-1000.0,9.445e-05,2]
[342716737,1732077031504,-1800.0,9.5e-05,3]
[342716738,1732077031514,-250.0,9.548e-05,2]
[342716739,1732077031523,-2200.0,9.6e-05,3]
[342716740,1732077031533,-161.57,9.614e-05,2]
[342716741,1732077031542,-400.0,9.7e-05,3]
[342716742,1732077031552,-150.0,9.799e-05,2]
[342716743,1732077031562,-9614.49043407,9.8e-05,2]
[342716744,1732077031571,-239393.7659,9.8e-05,2]
[342716745,1732077031580,-40973.6667,9.8e-05,2]
[342716746,1732077031589,-400.0,9.8e-05,3]
[342716747,1732077031598,-6578.0,9.801e-05,2]
[342716748,1732077031607,-250.0,9.89e-05,2]
[342716749,1732077031616,-6398.8,9.9e-05,2]
[342716750,1732077031625,-400.0,9.9e-05,3]
[342716751,1732077031633,-26636.0,9.973e-05,2]
[342716752,1732077031643,-7050.85224,9.999e-05,2]
[342716753,1732077031651,-500.0,9.999e-05,2]
[342716754,1732077031662,-254.86573668,9.999e-05,2]
[342716755,1732077031671,-21601.10829209,0.0001,2]
[342716756,1732077031685,-613.77,0.0001,2]
[342716757,1732077031696,-604.32337629,0.0001,2]
[342716758,1732077031711,-655056.03131299,0.0001,2]
[342716759,1732077031734,-73466.982319,0.0001,2]
[342716760,1732077031745,-398.2,0.0001,2]
[342716761,1732077031756,-629.98074683,0.0001,2]
[342716762,1732077031767,-10332.049264,0.0001,2]
[342716763,1732077031802,-5.18705784,0.0001,2]
[342716764,1732077031817,-1396.50221221,0.0001,2]
[342716789,1732077037488,-1058.49432481,9.182e-05,2]
[342716790,1732077037497,-27538244.78068851,0.0001,2]
[342716791,1732077037507,-1631.08887966,0.0001,2]
[342716792,1732077037518,-3000.0,0.0001,2]
[342716793,1732077037529,-400.0,0.0001,3]
[342716794,1732077037538,-4379650.16560072,0.0001,2]
[342716795,1732077037550,-1174613.75040661,0.0001,2]
[342716796,1732077037595,-0.45705052,0.0001,2]
[342716797,1732077037610,-341.38082856,0.0001,2]
[342716798,1732077037756,-1992.85345977,0.0001,2]
[342716799,1732077037768,-2716.40615873,0.0001,2]
[342716800,1732077037779,-651.52929213,0.0001,2]
[342716801,1732077037791,-1264.43557993,0.0001,2]
[342716802,1732077037811,-800.0,0.0001,2]
[342716803,1732077037824,-273.606,0.0001,2]
[342716825,1732077039378,-1082.52499995,0.0001,2]
[342716826,1732077039546,-733.83,0.0001,2]
[342716827,1732077039608,-3219.2548358,0.0001,2]
[342716828,1732077039619,-1544.84999999,0.0001,2]
[342716829,1732077039630,-1168.25,0.0001,2]
[342716846,1732077042509,-1058.4943248,9.275e-05,2]
[342716847,1732077042519,-149.39341625,0.0001,2]
[342716848,1732077042736,-3614.04767964,0.0001,2]
[342716849,1732077042747,-6845.82295234,0.0001,2]
[342716850,1732077042791,-1128.7920254,0.0001,2]
[342716858,1732077045855,-53572.19803763,0.0001,2]
[342716859,1732077045871,-552.006,0.0001,2]
[342716863,1732077652790,376.0,0.00027,120]
[342716867,1732078041474,-151.30727379,9e-05,2]
[342716868,1732078041496,-434.81366338,9.341e-05,2]
[342716869,1732078049099,-764.37854995,9.341e-05,2]
[342716875,1732078231645,-200.0,9.461e-05,2]
[342716876,1732078231655,-3073.18303652,9.57e-05,2]
[342716877,1732078231665,-1605.41740094,9.57e-05,2]
[342716878,1732078231862,-644.88259906,9.57e-05,2]
[342716879,1732078231871,-206.24446354,9.587e-05,2]
[342716880,1732078237623,-43.75553646,9.587e-05,2]
[342716881,1732078237632,-174.0,9.606e-05,2]
[342716882,1732078237641,-1246.31574608,9.699e-05,2]
[342716883,1732078237651,-300.0,9.699e-05,2]
[342716884,1732078237660,-39955.1808,9.7e-05,2]
[342716885,1732078237674,-3030.39,9.803e-05,2]
[342716886,1732078237683,-638.52,9.859e-05,2]
[342716887,1732078237693,-150.0,9.972e-05,2]
[342716888,1732078237702,-150.0,9.973e-05,2]
[342716889,1732078237711,-15204.0,9.973e-05,2]
[342716890,1732078237721,-562.3957507,9.992e-05,2]
[342716891,1732078237730,-2339.6711821,9.992e-05,2]
[342716892,1732078237740,-5210.3508199,9.992e-05,2]
[342716893,1732078237750,-371.49692692,9.992e-05,2]
[342716894,1732078237759,-645.7684542,9.993e-05,2]
[342716895,1732078237768,-729.1411576,9.993e-05,2]
[342716896,1732078237778,-812.513861,9.993e-05,2]
[342716897,1732078237787,-895.8865644,9.993e-05,2]
[342716898,1732078237796,-2686.5171732,9.993e-05,2]
[342716899,1732078237806,-3033.3631642,9.993e-05,2]
[342716900,1732078237815,-3380.2091553,9.993e-05,2]
[342716901,1732078237824,-3727.0551463,9.993e-05,2]
[342716902,1732078237833,-5982.7624765,9.993e-05,2]
[342716903,1732078237842,-6755.1741331,9.993e-05,2]
[342716904,1732078237852,-7527.5857898,9.993e-05,2]
[342716905,1732078237861,-8299.9974464,9.993e-05,2]
[342716906,1732078237872,-500.0,9.999e-05,2]
[342716907,1732078237882,-31814660.93530194,0.0001,2]
[342716908,1732078237894,-1174613.75040661,0.0001,2]
[342716909,1732078237906,-10729.9312,0.0001,2]
[342716910,1732078237918,-3146.97427027,0.0001,2]
[342716911,1732078237928,-7238.62760682,0.0001,2]
[342716912,1732078237939,-3125.94448,0.0001,2]
[342716913,1732078237952,-1183.09863459,0.0001,2]
[342716914,1732078237967,-24251.7641319,0.0001,2]
[342716915,1732078237978,-3662.87436736,0.0001,2]
[342716916,1732078237997,-6343.79558506,0.0001,2]
[342716917,1732078238008,-3511.01877038,0.0001,2]
[342716918,1732078238019,-4106.56582189,0.0001,2]
[342716920,1732078238030,-733.64691336,0.0001,2]
[342716923,1732078238141,-294.85519431,0.0001,2]
[342716924,1732078238164,-5722.96911794,0.0001,2]
[342716927,1732078239590,-13280.48468677,0.0001,2]
[342716928,1732078239602,-1999.05710986,0.0001,2]
[342716929,1732078239647,-428.122495,0.0001,2]
[342716930,1732078239658,-4158.49282427,0.0001,2]
[342716931,1732078239811,-2267.28801796,0.0001,2]
[342716932,1732078239822,-624.04260124,0.0001,2]
[342716933,1732078239834,-3760.31629213,0.0001,2]
[342716942,1732078242588,-3892.49795619,0.0001,2]
[342716943,1732078242599,-2935.85142084,0.0001,2]
[342716944,1732078242611,-4311.89776284,0.0001,2]
[342716945,1732078242858,-3165.8288199,0.0001,2]
[342716946,1732078242870,-11195.19717126,0.0001,2]
[342716947,1732078242882,-4569.58244835,0.0001,2]
[342716948,1732078242893,-989.95284261,0.0001,2]
[342716971,1732078245636,-263.21584521,0.0001,2]
[342716972,1732078245748,-1977.07133774,0.0001,2]
[342716973,1732078245760,-4809.94425609,0.0001,2]
[342716974,1732078245804,-1986.53356581,0.0001,2]
[342716975,1732078245862,-562.300042,0.0001,2]
[342716976,1732078245972,-19914.70130653,0.0001,2]
[342716977,1732078245983,-424.65500006,0.0001,2]
[342716978,1732078245995,-1891.96780863,0.0001,2]
[342716982,1732078391571,606.59,8.219e-05,2]
[342716983,1732078403111,500.0,0.00026886,120]
[342716984,1732078408852,202.150759,0.00026886,120]
[342716985,1732078624448,1631.08887966,0.00027,120]
[342716986,1732079072920,1250.88,8.219e-05,2]
[342716987,1732079079383,300.0,0.00027,120]
[342716988,1732079087808,574.64,0.00016658,30]
[342716989,1732079088012,574.64,0.00019242,30]
[342716990,1732079108301,300.0,0.00027,120]
[342716991,1732079143155,-250.0,8.626e-05,2]
[342716992,1732079143178,-134.3035239,8.669e-05,2]
[342716993,1732079188482,330.0,8e-05,2]
[342716994,1732079229101,-115.6964761,8.669e-05,2]
[342716995,1732079229122,-1222.05,8.67e-05,2]
[342716996,1732079229143,-582.2306741,8.737e-05,2]
[342716997,1732079244088,-336.41133728,8.737e-05,2]
[342717000,1732079345087,-1103.3748,8.695e-05,2]
[342717001,1732079345110,-81.35798862,8.737e-05,2]
[342717002,1732079345130,-1232.35,8.751e-05,2]
[342717003,1732079345149,-2000.0,8.759e-05,2]
[342717004,1732079345280,-300.0,8.794e-05,2]
[342717005,1732079345300,-6194.8265,8.795e-05,2]
[342717006,1732079347096,-17565.46078345,8.795e-05,2]
[342717007,1732079358102,-139.71271655,8.795e-05,2]
[342717008,1732079358125,-591.74,8.795e-05,2]
[342717009,1732079358148,-566.33956323,8.864e-05,2]
[342717011,1732079363153,-61.79043677,8.864e-05,2]
[342717012,1732079363176,-250.0,8.955e-05,2]
[342717013,1732079363196,-86.97679465,9e-05,2]
[342717022,1732079431785,-63.02320535,9e-05,2]
[342717023,1732079431794,-500.0,9e-05,2]
[342717025,1732079431803,-28.9689195,9e-05,2]
[342717026,1732079431844,-471.0310805,9e-05,2]
[342717027,1732079431853,-500.0,9e-05,2]
[342717029,1732079431862,-500.0,9e-05,2]
[342717031,1732079431871,-317.219982,9e-05,2]
[342717035,1732079431902,-182.780018,9e-05,2]
[342717037,1732079431912,-286.65487014,9e-05,2]
[342717043,1732079431961,-213.34512986,9e-05,2]
[342717045,1732079431970,-236.65487014,9.01e-05,2]
[342717052,1732079432036,-266.02160653,9.01e-05,2]
[342717054,1732079432046,-195.59839347,9.1e-05,3]
[342717059,1732079432079,-4.40160653,9.1e-05,3]
[342717061,1732079432089,-500.0,9.2e-05,3]
[342717063,1732079432099,-800.0,9.3e-05,3]
[342717065,1732079432109,-182.14,9.325e-05,2]
[342717067,1732079432118,-215.11102317,9.4e-05,3]
[342717069,1732079432129,-884.88897683,9.4e-05,3]
[342717071,1732079432138,-800.11102317,9.5e-05,3]
[342717073,1732079432149,-599.88897683,9.5e-05,3]
[342717075,1732079432159,-100.11102317,9.6e-05,3]
[342717078,1732079432177,-99.88897683,9.6e-05,3]
[342717080,1732079432186,-150.0,9.602e-05,2]
[342717082,1732079432195,-200.0,9.7e-05,3]
[342717084,1732079432205,-1007.0,9.8e-05,2]
[342717086,1732079432215,-200.0,9.8e-05,3]
[342717088,1732079432224,-1000.0,9.829e-05,2]
[342717090,1732079432234,-150.0,9.889e-05,2]
[342717092,1732079432244,-6632.77674391,9.89e-05,2]
[342717093,1732079432253,-250.0,9.89e-05,2]
[342717094,1732079432262,-302.1329,9.9e-05,2]
[342717095,1732079432271,-51780.29489206,9.9e-05,2]
[342717096,1732079432282,-9334.50670794,9.9e-05,2]
[342717097,1732079432291,-2385.0,9.9e-05,2]
[342717098,1732079432301,-1000.0,9.9e-05,2]
[342717099,1732079432311,-1486.9114,9.9e-05,2]
[342717100,1732079432398,-2823.6177,9.9e-05,2]
[342717101,1732079432410,-500.0,9.9e-05,2]
[342717102,1732079432422,-358.7681,9.9e-05,2]
[342717104,1732079432432,-200.0,9.9e-05,3]
[342717105,1732079432441,-2307.09609206,9.9e-05,2]
[342717107,1732079432456,-134.69270794,9.9e-05,2]
[342717108,1732079432465,-628.13,9.972e-05,2]
[342717109,1732079432474,-500.0,9.999e-05,2]
[342717110,1732079432483,-73572.20702304,0.0001,2]
[342717115,1732079432644,-1344.0,0.0001,2]
[342717116,1732079432655,-2660.44796199,0.0001,2]
[342717117,1732079432678,-6691.20643405,0.0001,2]
[342717119,1732079437809,-234.3022,9.9e-05,2]
[342717120,1732079437820,-365727.0836,9.9e-05,2]
[342717121,1732079437830,-31448699.5495019,0.0001,2]
[342717122,1732079437842,-1174613.75040661,0.0001,2]
[342717123,1732079437976,-5749.10812304,0.0001,2]
[342717124,1732079438034,-16675.97020222,0.0001,2]
[342717149,1732079440118,-350.48527857,0.0001,2]
[342717152,1732079440135,-1433.93556535,0.0001,2]
[342717155,1732079440153,-383.74735203,0.0001,2]
[342717158,1732079440171,-86624.02006057,0.0001,2]
[342717159,1732079440196,-461.36741209,0.0001,2]
[342717160,1732079440222,-46636.33487084,0.0001,2]
[342717163,1732079442886,-1026.84924479,0.0001,2]
[342717164,1732079442943,-1950.8,0.0001,2]
[342717165,1732079442955,-774.89963738,0.0001,2]
[342717166,1732079442967,-592091.59818487,0.0001,2]
[342717167,1732079442977,-307.916,0.0001,2]
[342717168,1732079442987,-839.74158721,0.0001,2]
[342717169,1732079442996,-355.1080392,0.0001,4]
[342717170,1732079443005,-3000.0,0.0001,2]
[342717171,1732079443015,-997.0,0.0001,3]
[342717172,1732079443024,-1174.88123896,0.0001,2]
[342717173,1732079443034,-160.957,0.00010105,2]
[342717174,1732079443043,-13654.0,0.00010105,2]
[342717175,1732079443053,-5939.0,0.00010105,2]
[342717176,1732079443063,-1161.0,0.00010105,2]
[342717177,1732079443073,-1098.589,0.00010105,2]
[342717178,1732079443084,-25088.0,0.00010166,2]
[342717179,1732079443095,-426.34613973,0.00010187,2]
[342717180,1732079443105,-156.362,0.00010205,2]
[342717181,1732079443114,-279.892,0.00010205,2]
[342717182,1732079443123,-250.0,0.00010205,2]
[342717183,1732079443133,-1256.0,0.00010205,2]
[342717184,1732079443142,-565.698,0.00010205,2]
[342717185,1732079443151,-629.682,0.00010205,2]
[342717186,1732079443160,-1994.0,0.00010205,2]
[342717187,1732079443169,-279.759,0.00010205,2]
[342717188,1732079443181,-1931.614,0.00010205,2]
[342717189,1732079443196,-3747.0,0.00010205,2]
[342717190,1732079443206,-1263.772,0.00010205,2]
[342717191,1732079443215,-815.0,0.00010205,2]
[342717193,1732079443226,-926.918,0.00010205,2]
[342717195,1732079443236,-3506.468,0.00010205,2]
[342717197,1732079443247,-1250.88,0.00010404,2]
[342717199,1732079443256,-426.34613973,0.00010589,2]
[342717200,1732079443265,-255.0,0.00010878,2]
[342717201,1732079443275,-1000.0,0.00010921,2]
[342717202,1732079443285,-426.34613973,0.00010958,2]
[342717203,1732079443294,-150.0,0.00010959,2]
[342717204,1732079443304,-1011.9570425,0.00011064,2]
[342717205,1732079443313,-2253.5864212,0.00011064,2]
[342717206,1732079443323,-163.2098779,0.00011072,2]
[342717207,1732079443332,-628.13,0.0001108,2]
[342717208,1732079443342,-426.34613973,0.00011228,2]
[342717210,1732079443351,-500.0,0.00011369,2]
[342717211,1732079443361,-426.34613973,0.00011413,2]
[342717212,1732079443371,-239.01853305,0.000115,5]
[342717213,1732079443380,-168.54,0.00011915,2]
[342717214,1732079443389,-433.0,0.00011966,2]
[342717215,1732079443399,-500.0,0.00012,10]
[342717216,1732079443408,-1000.0,0.00012013,2]
[342717217,1732079443417,-628.13,0.00012188,2]
[342717218,1732079443426,-1232.35,0.00012251,2]
[342717219,1732079443436,-3000.0,0.000124,2]
[342717220,1732079443445,-165.64,0.00012408,2]
[342717221,1732079443454,-165.64,0.0001242,2]
[342717222,1732079443464,-165.64,0.00012432,2]
[342717223,1732079443473,-165.64,0.00012445,2]
[342717224,1732079443483,-165.64,0.00012457,2]
[342717225,1732079443492,-165.64,0.0001247,2]
[342717226,1732079443502,-1250.88,0.00012589,2]
[342717227,1732079443512,-500.0,0.00012739,2]
[342717228,1732079443522,-2806.02,0.00012893,2]
[342717229,1732079443532,-299.99,0.00012893,2]
[342717230,1732079443541,-150.99,0.00012893,2]
[342717231,1732079443550,-542.45,0.00012893,2]
[342717232,1732079443559,-9999.99,0.00012893,2]
[342717233,1732079443568,-4098.11,0.00012893,2]
[342717234,1732079443578,-305.39,0.00012893,2]
[342717235,1732079443587,-172.63,0.00012893,2]
[342717236,1732079443597,-1904.97,0.00012893,2]
[342717237,1732079443606,-561.8,0.00013013,2]
[342717238,1732079443616,-150.0,0.00013105,2]
[342717239,1732079443626,-13449.659,0.00013105,2]
[342717240,1732079443636,-228.487,0.00013105,2]
[342717241,1732079443645,-534.293,0.00013105,2]
[342717242,1732079443655,-1093.0,0.00013105,2]
[342717243,1732079443664,-1000.0,0.00013105,2]
[342717244,1732079443676,-544.0,0.00013162,2]
[342717245,1732079443686,-418.828,0.00013205,2]
[342717246,1732079443695,-560.0,0.00013205,2]
[342717247,1732079443704,-1994.0,0.00013205,2]
[342717248,1732079443714,-1926.0,0.00013205,2]
[342717249,1732079443724,-3747.0,0.00013205,2]
[342717250,1732079443733,-815.0,0.00013205,2]
[342717251,1732079443742,-628.13,0.00013296,2]
[342717252,1732079443752,-2751.0,0.00013462,2]
[342717253,1732079443762,-1506.09976002,0.00013698,2]
[342717254,1732079443772,-200.0,0.00013699,2]
[342717255,1732079443781,-500.0,0.00013699,2]
[342717256,1732079443790,-604.40665154,0.00013699,2]